fUSD/lending_fUSD_20260413
["ID","MTS","AMOUNT","RATE_DAILY","PERIOD"]
[420370575,1776041597989,-500.0,0.00039452,15]
[420370576,1776041598001,-500.0,0.00039452,15]
[420370577,1776041598011,-525.86,0.00039452,15]
[420370578,1776041598026,-1410.63,0.00039452,15]
[420370579,1776041598041,-2601.05,0.00039452,15]
[420370580,1776041598052,-1360.07,0.00039452,15]
[420370581,1776041598070,-500.0,0.00039452,15]
[420370582,1776041598086,-500.0,0.00039452,15]
[420370583,1776041598110,-544.4,0.00039452,15]
[420370584,1776041598121,-500.0,0.00039452,15]
[420370585,1776041598131,-2602.21,0.00039452,15]
[420370586,1776041598158,-1246.17,0.00039452,15]
[420370587,1776041598168,-1431.19,0.00039452,15]
[420370588,1776041598178,-910.09,0.00039452,15]
[420370589,1776041598244,-545.0,0.00039452,15]
[420370590,1776041598306,-709.26,0.00039452,15]
[420370591,1776041598318,-825.37,0.00039452,15]
[420370592,1776041598352,-1026.91,0.00039452,15]
[420370593,1776041598362,-1431.24,0.00039452,15]
[420370594,1776041598371,-2532.94,0.00039452,15]
[420370595,1776041598389,-500.0,0.00039452,15]
[420370596,1776041598400,-500.0,0.00039452,15]
[420370597,1776041598410,-500.0,0.00039452,15]
[420370598,1776041598425,-730.35,0.00039452,15]
[420370599,1776041598445,-4735.33,0.00039452,15]
[420370600,1776041598460,-900.75,0.00039452,15]
[420370601,1776041598473,-5584.03,0.00039452,15]
[420370602,1776041598487,-1104.11,0.00039452,15]
[420370603,1776041598497,-857.59,0.00039452,15]
[420370604,1776041598509,-500.0,0.00039452,15]
[420370605,1776041598521,-500.0,0.00039452,15]
[420370606,1776041598533,-500.0,0.00039452,15]
[420370607,1776041598547,-815.99,0.00039452,15]
[420370608,1776041598576,-1034.64,0.00039452,15]
[420370609,1776041598586,-868.13,0.00039452,15]
[420370610,1776041598599,-957.03,0.00039452,15]
[420370611,1776041598614,-1561.56,0.00039452,15]
[420370612,1776041598626,-523.62,0.00039452,2]
[420370613,1776041598648,-500.0,0.00039452,15]
[420370614,1776041598663,-500.0,0.00039452,15]
[420370615,1776041598685,-647.72,0.00039452,15]
[420370616,1776041598707,-1136.23,0.00039452,15]
[420370617,1776041598739,-1822.38,0.00039452,15]
[420370618,1776041598750,-690.84,0.00039452,15]
[420370619,1776041598769,-904.8,0.00039452,15]
[420370620,1776041598801,-2160.91,0.00039452,15]
[420370621,1776041598811,-634.41,0.00039452,15]
[420370622,1776041598823,-500.0,0.00039452,15]
[420370623,1776041598842,-939.32,0.00039452,15]
[420370624,1776041598871,-1241.9,0.00039452,15]
[420370625,1776041598881,-1402.95,0.00039452,15]
[420370626,1776041598903,-500.0,0.00039452,15]
[420370627,1776041598914,-740.92,0.00039452,15]
[420370628,1776041598924,-500.0,0.00039452,15]
[420370629,1776041598947,-3106.17,0.00039452,15]
[420370630,1776041598958,-1400.48,0.00039452,15]
[420370631,1776041598967,-1399.26,0.00039452,15]
[420370632,1776041598978,-500.0,0.00039452,15]
[420370633,1776041598999,-3891.46,0.00039452,15]
[420370634,1776041599009,-500.0,0.00039452,15]
[420370635,1776041599019,-500.0,0.00039452,15]
[420370636,1776041599038,-1343.25,0.00039452,15]
[420370637,1776041599048,-871.08,0.00039452,15]
[420370638,1776041599058,-631.41,0.00039452,15]
[420370639,1776041599085,-373.05858085,0.00039452,15]
[420370640,1776041599095,-500.0,0.00039452,15]
[420370641,1776041599108,-3348.65,0.00039452,15]
[420370642,1776041599129,-500.0,0.00039452,15]
[420370643,1776041599140,-500.0,0.00039452,15]
[420370644,1776041599151,-623.58,0.00039452,15]
[420370645,1776041599175,-1764.73,0.00039452,15]
[420370646,1776041599203,-605.34,0.00039452,15]
[420370647,1776041599214,-1105.88,0.00039452,15]
[420370648,1776041599226,-523.38,0.00039452,15]
[420370649,1776041599251,-2858.64,0.00039452,15]
[420370650,1776041599263,-500.0,0.00039452,15]
[420370651,1776041599282,-500.0,0.00039452,15]
[420370652,1776041599294,-156.77373727,0.00039452,15]
[420370653,1776041599315,-500.0,0.00039452,15]
[420370654,1776041599326,-469.06496631,0.00039452,15]
[420370655,1776041599344,-1857.91,0.00039452,15]
[420370656,1776041599357,-1970.32,0.00039452,15]
[420370657,1776041599378,-500.0,0.00039452,15]
[420370658,1776041599391,-1096.43,0.00039452,15]
[420370659,1776041599401,-500.0,0.00039452,15]
[420370660,1776041599414,-1151.97,0.00039452,15]
[420370661,1776041599440,-609.08,0.00039452,15]
[420370662,1776041599450,-2001.91,0.00039452,15]
[420370663,1776041599464,-592.53,0.00039452,15]
[420370664,1776041599477,-500.0,0.00039452,15]
[420370665,1776041599486,-2384.68,0.00039452,15]
[420370666,1776041599497,-500.0,0.00039452,15]
[420370667,1776041599522,-1034.02,0.00039452,15]
[420370668,1776041599531,-1344.4,0.00039452,15]
[420370669,1776041599541,-2587.1,0.00039452,15]
[420370670,1776041599551,-1703.71,0.00039452,15]
[420370671,1776041599567,-1594.35,0.00039452,15]
[420370672,1776041599577,-952.18,0.00039452,15]
[420370673,1776041599589,-526.15,0.00039452,15]
[420370674,1776041599607,-1708.56,0.00039452,15]
[420370675,1776041599616,-1390.73,0.00039452,15]
[420370676,1776041599625,-723.29,0.00039452,15]
[420370677,1776041599635,-500.05,0.00039452,15]
[420370678,1776041599649,-274.94989451,0.00039452,15]
[420370679,1776041599659,-500.0,0.00039452,15]
[420370680,1776041599669,-500.0,0.00039452,15]
[420370681,1776041599680,-995.87,0.00039452,15]
[420370682,1776041599690,-500.0,0.00039452,15]
[420370683,1776041599700,-1106.06,0.00039452,15]
[420370684,1776041599710,-500.0,0.00039452,15]
[420370685,1776041599722,-1283.69,0.00039452,15]
[420370686,1776041599733,-2291.91,0.00039452,15]
[420370687,1776041599743,-1055.7,0.00039452,15]
[420370688,1776041599753,-500.0,0.00039452,15]
[420370689,1776041599765,-500.0,0.00039452,15]
[420370690,1776041599864,-500.0,0.00039452,15]
[420370691,1776041599876,-1734.95,0.00039452,15]
[420370692,1776041599887,-500.0,0.00039452,15]
[420370693,1776041599897,-500.0,0.00039452,15]
[420370694,1776041599906,-500.0,0.00039452,15]
[420370695,1776041599916,-1610.52,0.00039452,15]
[420370696,1776041599934,-970.57,0.00039452,15]
[420370697,1776041599943,-500.0,0.00039452,15]
[420370698,1776041599952,-749.82,0.00039452,15]
[420370699,1776041599963,-933.34,0.00039452,15]
[420370700,1776041599981,-500.0,0.00039452,15]
[420370701,1776041599990,-517.75200026,0.00039452,15]
[420370702,1776041600009,-1188.63,0.00039452,15]
[420370703,1776041600029,-643.8,0.00039452,15]
[420370704,1776041600039,-749.54,0.00039452,15]
[420370705,1776041600054,-665.53,0.00039452,15]
[420370706,1776041600066,-3022.45,0.00039452,15]
[420370707,1776041600076,-730.53,0.00039452,15]
[420370708,1776041600088,-500.0,0.00039452,15]
[420370709,1776041600101,-500.0,0.00039452,15]
[420370710,1776041600112,-1125.09,0.00039452,15]
[420370711,1776041600123,-860.42,0.00039452,15]
[420370712,1776041600146,-500.0,0.00039452,15]
[420370713,1776041600158,-919.63,0.00039452,15]
[420370714,1776041600183,-3724.43,0.00039452,15]
[420370715,1776041600197,-566.56,0.00039452,15]
[420370716,1776041600211,-1642.97,0.00039452,15]
[420370717,1776041600251,-2935.94,0.00039452,15]
[420370718,1776041600261,-749.44,0.00039452,15]
[420370719,1776041600286,-1409.24,0.00039452,15]
[420370720,1776041600298,-1838.08,0.00039452,15]
[420370721,1776041600307,-500.0,0.00039452,15]
[420370722,1776041600337,-2539.74,0.00039452,15]
[420370723,1776041600357,-500.0,0.00039452,15]
[420370724,1776041600380,-3600.95,0.00039452,15]
[420370725,1776041600392,-594.11,0.00039452,15]
[420370726,1776041600410,-1740.79,0.00039452,15]
[420370727,1776041600425,-991.93,0.00039452,15]
[420370728,1776041600442,-544.97,0.00039452,15]
[420370729,1776041600461,-500.0,0.00039452,15]
[420370730,1776041600471,-3727.63,0.00039452,15]
[420370731,1776041600489,-1800.61,0.00039452,15]
[420370732,1776041600510,-1550.44,0.00039452,15]
[420370733,1776041600536,-935.8,0.00039452,15]
[420370734,1776041600555,-1389.57,0.00039452,15]
[420370735,1776041600573,-2959.44,0.00039452,15]
[420370736,1776041600588,-1416.09,0.00039452,15]
[420370737,1776041600603,-500.0,0.00039452,15]
[420370738,1776041600617,-666.88,0.00039452,15]
[420370739,1776041600642,-500.0,0.00039452,15]
[420370740,1776041600653,-823.28,0.00039452,15]
[420370741,1776041600686,-3237.88,0.00039452,15]
[420370742,1776041600695,-553.12558117,0.00039452,15]
[420370743,1776041600711,-903.79,0.00039452,15]
[420370744,1776041600737,-814.41,0.00039452,15]
[420370745,1776041600747,-500.0,0.00039452,15]
[420370746,1776041600770,-1102.66,0.00039452,15]
[420370747,1776041600783,-500.0,0.00039452,15]
[420370748,1776041600796,-1843.26,0.00039452,15]
[420370749,1776041600825,-1158.52,0.00039452,15]
[420370750,1776041600835,-2877.49,0.00039452,15]
[420370751,1776041600858,-4854.15,0.00039452,15]
[420370752,1776041600886,-2664.28,0.00039452,15]
[420370753,1776041600898,-500.0,0.00039452,15]
[420370754,1776041600908,-972.23,0.00039452,15]
[420370755,1776041600930,-500.0,0.00039452,15]
[420370756,1776041600939,-500.0,0.00039452,15]
[420370757,1776041600949,-938.26,0.00039452,15]
[420370758,1776041600965,-1898.71,0.00039452,15]
[420370759,1776041600977,-2356.97,0.00039452,15]
[420370760,1776041600989,-500.0,0.00039452,15]
[420370761,1776041601002,-15649.82,0.00039452,15]
[420370762,1776041601018,-500.0,0.00039452,15]
[420370763,1776041601027,-2333.12,0.00039452,15]
[420370764,1776041601050,-500.0,0.00039452,15]
[420370765,1776041601060,-6070.81,0.00039452,2]
[420370766,1776041601070,-1343.87,0.00039452,15]
[420370767,1776041601084,-500.0,0.00039452,15]
[420370768,1776041601097,-572.0,0.00039452,15]
[420370769,1776041601108,-500.0,0.00039452,15]
[420370770,1776041601124,-500.0,0.00039452,15]
[420370771,1776041601135,-726.46,0.00039452,15]
[420370772,1776041601145,-1977.12,0.00039452,15]
[420370773,1776041601170,-1912.95,0.00039452,15]
[420370774,1776041601180,-53919.81,0.00039452,15]
[420370775,1776041601196,-3973.18,0.00039452,15]
[420370776,1776041601207,-2080.47,0.00039452,15]
[420370777,1776041601226,-1380.83,0.00039452,15]
[420370778,1776041601249,-1594.37,0.00039452,15]
[420370779,1776041601259,-167.62258787,0.00039452,15]
[420370780,1776041601268,-2286.82,0.00039452,15]
[420370781,1776041601278,-1215.29,0.00039452,15]
[420370782,1776041601311,-2777.29,0.00039452,15]
[420370783,1776041601321,-500.0,0.00039452,15]
[420370784,1776041601330,-1653.98,0.00039452,15]
[420370785,1776041601339,-500.0,0.00039452,15]
[420370786,1776041601361,-1383.8,0.00039452,15]
[420370787,1776041601371,-2757.74,0.00039452,15]
[420370788,1776041601381,-5671.16,0.00039452,14]
[420370789,1776041601408,-1337.28,0.00039452,15]
[420370790,1776041601417,-500.0,0.00039452,15]
[420370791,1776041601427,-1001.04,0.00039452,15]
[420370792,1776041601447,-565.18,0.00039452,15]
[420370793,1776041601463,-564.66,0.00039452,15]
[420370794,1776041601475,-3432.21,0.00039452,15]
[420370795,1776041601491,-1410.07,0.00039452,15]
[420370796,1776041601502,-500.0,0.00039452,15]
[420370797,1776041601511,-2188.75,0.00039452,14]
[420370798,1776041601526,-500.0,0.00039452,15]
[420370799,1776041601535,-500.0,0.00039452,15]
[420370800,1776041601544,-555.08,0.00039452,15]
[420370801,1776041601554,-760.05,0.00039452,15]
[420370802,1776041601571,-522.26,0.00039452,15]
[420370803,1776041601583,-1451.02,0.00039452,15]
[420370804,1776041601593,-684.15,0.00039452,15]
[420370805,1776041601603,-2164.58,0.00039452,15]
[420370806,1776041601619,-2493.89,0.00039452,15]
[420370807,1776041601631,-500.0,0.00039452,15]
[420370808,1776041601656,-500.0,0.00039452,15]
[420370809,1776041601669,-1258.95,0.00039452,15]
[420370810,1776041601689,-668.26,0.00039452,15]
[420370811,1776041601701,-841.2,0.00039452,15]
[420370812,1776041601721,-1402.85,0.00039452,15]
[420370813,1776041601737,-1966.15,0.00039452,15]
[420370814,1776041601756,-500.0,0.00039452,15]
[420370815,1776041601776,-2099.54,0.00039452,15]
[420370816,1776041601798,-500.0,0.00039452,15]
[420370817,1776041601810,-256.64103976,0.00039452,15]
[420370818,1776041601831,-500.0,0.00039452,15]
[420370819,1776041601842,-1499.38,0.00039452,15]
[420370820,1776041601851,-1156.86,0.00039452,15]
[420370821,1776041601873,-500.0,0.00039452,15]
[420370822,1776041601885,-500.0,0.00039452,15]
[420370823,1776041601894,-727.01,0.00039452,15]
[420370824,1776041601928,-500.0,0.00039452,15]
[420370825,1776041601938,-500.0,0.00039452,15]
[420370826,1776041601964,-1088.75,0.00039452,10]
[420370827,1776041601973,-2369.56,0.00039452,15]
[420370828,1776041601984,-282.74885167,0.00039452,15]
[420370829,1776041602004,-2576.55,0.00039452,15]
[420370830,1776041602015,-710.49,0.00039452,15]
[420370831,1776041602025,-500.0,0.00039452,15]
[420370832,1776041602038,-500.0,0.00039452,15]
[420370833,1776041602054,-500.0,0.00039452,15]
[420370834,1776041602064,-551.01,0.00039452,15]
[420370835,1776041602078,-500.0,0.00039452,15]
[420370836,1776041602099,-530.19,0.00039452,15]
[420370837,1776041602124,-500.0,0.00039452,15]
[420370838,1776041602134,-500.0,0.00039452,15]
[420370839,1776041602157,-1050.9,0.00039452,2]
[420370840,1776041602167,-777.27,0.00039452,15]
[420370841,1776041602179,-1688.24,0.00039452,15]
[420370842,1776041602200,-500.0,0.00039452,15]
[420370843,1776041602210,-1238.65,0.00039452,15]
[420370844,1776041602233,-838.3,0.00039452,15]
[420370845,1776041602243,-3632.99,0.00039452,15]
[420370846,1776041602252,-519.68,0.00039452,15]
[420370847,1776041602273,-500.0,0.00039452,15]
[420370848,1776041602283,-1404.43,0.00039452,15]
[420370849,1776041602293,-500.0,0.00039452,2]
[420370850,1776041602310,-1416.03,0.00039452,15]
[420370851,1776041602326,-500.0,0.00039452,15]
[420370852,1776041602337,-500.0,0.00039452,15]
[420370853,1776041602352,-500.0,0.00039452,15]
[420370854,1776041602370,-500.0,0.00039452,15]
[420370855,1776041602392,-2663.72,0.00039452,15]
[420370856,1776041602403,-500.0,0.00039452,15]
[420370857,1776041602422,-228.98,0.00039452,15]
[420370858,1776041602433,-1941.75,0.00039452,15]
[420370859,1776041602443,-603.00397045,0.00039452,15]
[420370860,1776041602455,-500.0,0.00039452,15]
[420370861,1776041602479,-1140.07,0.00039452,15]
[420370862,1776041602490,-2327.16,0.00039452,15]
[420370863,1776041602506,-1143.2,0.00039452,15]
[420370864,1776041602526,-691.76,0.00039452,15]
[420370865,1776041602539,-2867.96,0.00039452,15]
[420370866,1776041602553,-500.0,0.00039452,15]
[420370867,1776041602571,-502.71,0.00039452,15]
[420370868,1776041602592,-668.39,0.00039452,15]
[420370869,1776041602606,-825.64,0.00039452,15]
[420370870,1776041602616,-500.0,0.00039452,2]
[420370871,1776041602638,-772.87,0.00039452,15]
[420370872,1776041602649,-500.0,0.00039452,15]
[420370873,1776041602659,-2035.28,0.00039452,15]
[420370874,1776041602669,-2804.52,0.00039452,15]
[420370875,1776041602687,-500.0,0.00039452,15]
[420370876,1776041602703,-1528.0,0.00039452,30]
[420370877,1776041602713,-3285.71694297,0.00039452,2]
[420370878,1776041602723,-1000.0,0.000395,120]
[420370879,1776041602734,-1000.0,0.000395,2]
[420370880,1776041602750,-175.1781,0.00039589,15]
[420370881,1776041602762,-500.0,0.0003959,120]
[420370882,1776041602774,-502.79417889,0.00039686,60]
[420370883,1776041602801,-1000.0,0.0003969,7]
[420370884,1776041602814,-154.16957324,0.0003969,7]
[420370885,1776041602829,-676.46,0.000397,70]
[420370886,1776041602847,-5828.66672179,0.00039725,15]
[420370887,1776041602859,-5828.66672178,0.00039725,15]
[420370888,1776041602879,-515.93602505,0.00039726,15]
[420370889,1776041602898,-614.70587296,0.00039726,15]
[420370890,1776041602923,-500.0,0.00039726,15]
[420370891,1776041602959,-1663.8,0.00039726,15]
[420370892,1776041602974,-225.66466949,0.00039726,15]
[420370893,1776041602996,-500.0,0.00039726,15]
[420370894,1776041603020,-550.79,0.00039726,15]
[420370895,1776041603059,-500.0,0.00039726,15]
[420370896,1776041603127,-500.0,0.00039726,15]
[420370897,1776041603137,-549.4277198,0.00039726,15]
[420370898,1776041603161,-500.0,0.00039726,15]
[420370899,1776041603171,-500.0,0.00039726,15]
[420370900,1776041603181,-697.6,0.00039726,15]
[420370901,1776041603216,-500.0,0.00039726,15]
[420370902,1776041603226,-500.0,0.00039726,15]
[420370903,1776041603236,-500.0,0.00039726,15]
[420370904,1776041603258,-500.0,0.00039726,15]
[420370905,1776041603285,-947.62,0.00039726,15]
[420370906,1776041603295,-500.0,0.00039726,15]
[420370907,1776041603310,-500.0,0.00039726,15]
[420370908,1776041603334,-500.0,0.00039726,15]
[420370909,1776041603344,-785.07,0.00039726,15]
[420370910,1776041603353,-500.0,0.00039726,15]
[420370911,1776041603378,-1045.15,0.00039726,15]
[420370912,1776041603407,-500.0,0.00039726,15]
[420370913,1776041603416,-500.0,0.00039726,15]
[420370914,1776041603440,-551.38253981,0.00039726,15]
[420370915,1776041603452,-500.0,0.00039726,15]
[420370916,1776041603464,-1634.13,0.00039726,7]
[420370917,1776041603493,-500.0,0.00039726,15]
[420370918,1776041603503,-500.0,0.00039726,7]
[420370919,1776041603527,-327.01989721,0.00039726,15]
[420370920,1776041603541,-500.0,0.00039726,15]
[420370921,1776041603550,-628.08,0.00039726,15]
[420370922,1776041603568,-589.03285764,0.00039726,15]
[420370923,1776041603582,-710.03,0.00039726,15]
[420370924,1776041603593,-849.78,0.00039726,15]
[420370925,1776041603602,-500.0,0.00039726,15]
[420370926,1776041603614,-1943.24,0.00039726,15]
[420370927,1776041603631,-186.39011329,0.00039726,15]
[420370928,1776041603641,-237.82154592,0.00039726,15]
[420370929,1776041603655,-500.0,0.00039726,15]
[420370930,1776041603664,-546.4548244,0.00039726,15]
[420370931,1776041603678,-1068.31,0.00039726,15]
[420370932,1776041603687,-601.67,0.00039726,15]
[420370933,1776041603703,-500.0,0.00039726,15]
[420370934,1776041603721,-500.0,0.00039726,15]
[420370935,1776041603731,-763.96,0.00039726,15]
[420370936,1776041603755,-500.0,0.00039726,15]
[420370937,1776041603765,-647.78,0.00039726,15]
[420370938,1776041603775,-500.0,0.00039726,15]
[420370939,1776041603789,-1381.7,0.00039726,15]
[420370940,1776041603803,-565.16614746,0.00039726,15]
[420370941,1776041603812,-792.32,0.00039726,15]
[420370942,1776041603822,-527.39,0.00039726,15]
[420370943,1776041603841,-187.7492866,0.00039726,15]
[420370944,1776041603851,-500.0,0.00039726,15]
[420370945,1776041603862,-500.0,0.00039726,15]
[420370946,1776041603871,-1152.6,0.00039726,15]
[420370947,1776041603881,-448.67222781,0.00039726,15]
[420370948,1776041603895,-500.0,0.00039726,15]
[420370949,1776041603907,-500.0,0.00039726,15]
[420370950,1776041603915,-969.29,0.00039726,15]
[420370951,1776041603926,-500.0,0.00039726,15]
[420370952,1776041603942,-1217.57,0.00039726,15]
[420370953,1776041603953,-1867.56,0.00039726,15]
[420370954,1776041603962,-500.0,0.00039726,15]
[420370955,1776041603971,-621.51,0.00039726,15]
[420370956,1776041603988,-500.0,0.00039726,15]
[420370957,1776041604003,-582.94,0.00039726,15]
[420370958,1776041604013,-500.0,0.00039726,15]
[420370959,1776041604031,-500.0,0.00039726,15]
[420370960,1776041604046,-1105.13,0.00039726,15]
[420370961,1776041604060,-772.66,0.00039726,15]
[420370962,1776041604077,-500.0,0.00039726,15]
[420370963,1776041604107,-500.0,0.00039726,15]
[420370964,1776041604120,-500.0,0.00039726,15]
[420370965,1776041604136,-500.0,0.00039726,15]
[420370966,1776041604162,-655.74,0.00039726,15]
[420370967,1776041604174,-566.24734626,0.00039726,15]
[420370968,1776041604201,-1081.95,0.00039726,15]
[420370969,1776041604213,-500.0,0.00039726,15]
[420370970,1776041604259,-500.0,0.00039726,15]
[420370971,1776041604272,-500.0,0.00039726,15]
[420370972,1776041604291,-500.0,0.00039726,15]
[420370973,1776041604308,-953.1,0.00039726,15]
[420370974,1776041604317,-500.0,0.00039726,15]
[420370975,1776041604332,-500.0,0.00039726,15]
[420370976,1776041604348,-627.16,0.00039726,15]
[420370977,1776041604362,-2804.38,0.00039726,15]
[420370978,1776041604373,-1274.7,0.00039726,15]
[420370979,1776041604383,-500.0,0.00039726,15]
[420370980,1776041604395,-500.0,0.00039726,15]
[420370981,1776041604404,-192.84509575,0.00039726,15]
[420370982,1776041604416,-2514.55,0.00039726,15]
[420370983,1776041604425,-719.78,0.00039726,15]
[420370984,1776041604435,-859.84,0.00039726,2]
[420370985,1776041604455,-552.98,0.00039726,15]
[420370986,1776041604464,-914.83,0.00039726,15]
[420370987,1776041604474,-500.0,0.00039726,15]
[420370988,1776041604491,-500.0,0.00039726,15]
[420370989,1776041604507,-500.0,0.00039726,15]
[420370990,1776041604516,-710.68,0.00039726,15]
[420370991,1776041604525,-500.0,0.00039726,15]
[420370992,1776041604543,-500.0,0.00039726,15]
[420370993,1776041604553,-849.06,0.00039726,7]
[420370994,1776041604562,-1369.55,0.00039726,15]
[420370995,1776041604576,-500.0,0.00039726,15]
[420370996,1776041604588,-1237.88,0.00039726,15]
[420370997,1776041604597,-563.87,0.00039726,15]
[420370998,1776041604607,-500.0,0.00039726,15]
[420370999,1776041604628,-788.01,0.00039726,15]
[420371000,1776041604637,-500.0,0.00039726,15]
[420371001,1776041604650,-568.15,0.00039726,15]
[420371002,1776041604672,-500.0,0.00039726,15]
[420371003,1776041604682,-500.0,0.00039726,15]
[420371004,1776041604697,-500.0,0.00039726,15]
[420371005,1776041604707,-3366.71,0.00039726,15]
[420371006,1776041604718,-923.98,0.00039726,15]
[420371007,1776041604738,-2088.77,0.00039726,15]
[420371008,1776041604748,-549.15,0.00039726,15]
[420371009,1776041604757,-500.0,0.00039726,15]
[420371010,1776041604777,-500.0,0.00039726,15]
[420371011,1776041604793,-500.0,0.00039726,15]
[420371012,1776041604806,-500.0,0.00039726,15]
[420371013,1776041604816,-1268.03,0.00039726,15]
[420371014,1776041604836,-500.0,0.00039726,15]
[420371015,1776041604846,-500.0,0.00039726,15]
[420371016,1776041604872,-558.39,0.00039726,15]
[420371017,1776041604892,-500.0,0.00039726,15]
[420371018,1776041604902,-500.0,0.00039726,15]
[420371019,1776041604911,-1218.49,0.00039726,15]
[420371020,1776041604926,-4311.22,0.00039726,15]
[420371021,1776041604938,-788.69,0.00039726,15]
[420371022,1776041604951,-707.14,0.00039726,15]
[420371023,1776041604960,-500.0,0.00039726,15]
[420371024,1776041604969,-500.0,0.00039726,15]
[420371025,1776041604980,-683.01,0.00039726,15]
[420371026,1776041604991,-654.55,0.00039726,15]
[420371027,1776041605001,-500.0,0.00039726,15]
[420371028,1776041605015,-1877.62,0.00039726,15]
[420371029,1776041605024,-500.0,0.00039726,15]
[420371030,1776041605035,-1985.43,0.00039726,15]
[420371031,1776041605050,-500.0,0.00039726,12]
[420371032,1776041605059,-1299.61,0.00039726,15]
[420371033,1776041605075,-1450.56,0.00039726,15]
[420371034,1776041605084,-500.0,0.00039726,15]
[420371035,1776041605096,-919.99,0.00039726,15]
[420371036,1776041605110,-500.0,0.00039726,15]
[420371037,1776041605120,-500.0,0.00039726,15]
[420371038,1776041605138,-500.0,0.00039726,15]
[420371039,1776041605155,-2075.21,0.00039726,15]
[420371040,1776041605177,-500.0,0.00039726,15]
[420371041,1776041605191,-500.0,0.00039726,15]
[420371042,1776041605207,-534.23,0.00039726,15]
[420371043,1776041605219,-500.0,0.00039726,15]
[420371044,1776041605233,-1289.28,0.00039726,15]
[420371045,1776041605264,-500.0,0.00039726,15]
[420371046,1776041605276,-500.0,0.00039726,15]
[420371047,1776041605302,-500.0,0.00039726,15]
[420371048,1776041605318,-1427.37,0.00039726,15]
[420371049,1776041605340,-1530.82,0.00039726,15]
[420371050,1776041605386,-500.0,0.00039726,15]
[420371051,1776041605466,-2046.09,0.00039726,15]
[420371052,1776041605523,-500.0,0.00039726,15]
[420371053,1776041605546,-500.0,0.00039726,15]
[420371054,1776041605561,-2529.22,0.00039726,15]
[420371055,1776041605593,-745.28,0.00039726,15]
[420371056,1776041605617,-808.37,0.00039726,15]
[420371057,1776041605630,-2416.53,0.00039726,15]
[420371058,1776041605641,-906.56,0.00039726,15]
[420371059,1776041605661,-523.37,0.00039726,15]
[420371060,1776041605683,-500.0,0.00039726,15]
[420371061,1776041605692,-504.19,0.00039726,15]
[420371062,1776041605702,-500.0,0.00039726,15]
[420371063,1776041605725,-500.0,0.00039726,15]
[420371064,1776041605735,-500.0,0.00039726,15]
[420371065,1776041605751,-500.0,0.00039726,15]
[420371066,1776041605762,-500.0,0.00039726,15]
[420371067,1776041605775,-2898.73,0.00039726,15]
[420371068,1776041605784,-500.0,0.00039726,15]
[420371069,1776041605795,-2221.27,0.00039726,15]
[420371070,1776041605808,-500.0,0.00039726,15]
[420371071,1776041605818,-1447.93,0.00039726,15]
[420371072,1776041605831,-819.82,0.00039726,15]
[420371073,1776041605840,-500.0,0.00039726,15]
[420371074,1776041605850,-362.64023758,0.00039726,15]